Workbook

Sheet Registro
A1: TITULO | B1: ESTUDIO DE IMPACTO AMBIENTAL: PROCEDIMIENTO Y HERRAMIENTAS
A3: AUTORES | B3: ROBERTO PECHE GONZALEZ
B4: DOLORES ENCINAS MALAGON
B5: ZURIÑE GOMEZ DE BALUGERA LOPEZ DE ALDA
B6: MARIA ARRITOKIETA ORTUZAR IRAGORRI
A8: ISBN: | B8: 978-84-613-9696-2

Sheet 128-131
A1: nº de indicador: | B1: 128 | C1: función de transformación: | D1: CA=-1E-04I2+2E-02I | E1: 0<I<100
A2: Indicador: | B2: Longitud de los elementos de la red ponderados por su importancia (hipótesis A)
A3: fórmula del indicador
A4: unidad del indicador:
A5: rango de valores del indicador: | B5: 0 - 100 | C5: valor del indicador | D5: 7
A6: Tipo de indicador | B6: 2 (T=0,25) | C6: calidad ambiental | D6: =IF(D5<0,"valor del indicador fuera de rango",IF(D5<=100,-0.0001*D5^2+0.02*D5)) -> 0.135
A7: valor del indicador | B7: calidad ambiental | C7: representación de la función de transformación
A8: 0 | B8: =-0.0001*A8^2+0.02*A8 -> 0.000
A9: =+A8+4 -> 4 | B9: =-0.0001*A9^2+0.02*A9 -> 0.078
A10: =+A9+4 -> 8 | B10: 0.154
A11: 12 | B11: 0.226
A12: 16 | B12: 0.294
A13: 20 | B13: 0.360
A14: 24 | B14: 0.422
A15: 28 | B15: 0.482
A16: 32 | B16: 0.538
A17: 36 | B17: 0.590
A18: 40 | B18: 0.640
A19: 44 | B19: 0.686
A20: 48 | B20: 0.730
A21: 52 | B21: 0.770
A22: 56 | B22: 0.806
A23: 60 | B23: 0.840
A24: 64 | B24: 0.870
A25: 68 | B25: 0.898
A26: 72 | B26: 0.922
A27: 76 | B27: 0.942
A28: 80 | B28: 0.960
A29: 84 | B29: 0.974
A30: 88 | B30: 0.986
A31: 94 | B31: 0.996
A32: 100 | B32: 1.000
A35: nº de indicador: | B35: 129 | C35: función de transformación: | D35: CA=0 | E35: 0<I<33
A36: Indicador: | B36: Longitud de los elementos de la red ponderados por su importancia (hipótesis B) | D36: CA=-2,23E-04I2+4,46E-02I-1,230 | E36: 33<I<100
A37: fórmula del indicador
A38: unidad del indicador:
A39: rango de valores del indicador: | B39: 0 - 100 | C39: valor del indicador | D39: 44
A40: Tipo de indicador | B40: 2 (T=0,25) | C40: calidad ambiental | D40: =IF(D39<0,"valor del indicador fuera de rango",IF(D39<=33,0,IF(D39<=100,-0.000223*D39^2+0.0446*D39-1.23,"valor del indicador fuera rango"))) -> 0.301
A41: valor del indicador | B41: calidad ambiental | C41: representación de la función de transformación
A42: 0 | B42: 0 | C42: 0.000
A43: =+A42+4 -> 4 | B43: 0 | C43: 0.000
A44: =+A43+4 -> 8 | B44: 0 | C44: 0.000
A45: 12 | B45: 0 | C45: 0.000
A46: 16 | B46: 0 | C46: 0.000
A47: 20 | B47: 0 | C47: 0.000
A48: 24 | B48: 0 | C48: 0.000
A49: 28 | B49: 0 | C49: 0.000
A50: 32 | B50: 0 | C50: 0.000
A51: 36 | B51: =-0.000223*A51^2+0.0446*A51-1.23 -> 0.087
A52: 40 | B52: 0.197
A53: 44 | B53: 0.301
A54: 48 | B54: 0.397
A55: 52 | B55: 0.486
A56: 56 | B56: 0.568
A57: 60 | B57: 0.643
A58: 64 | B58: 0.711
A59: 68 | B59: 0.772
A60: 72 | B60: 0.825
A61: 76 | B61: 0.872
A62: 80 | B62: 0.911
A63: 84 | B63: 0.943
A64: 88 | B64: 0.968
A65: 94 | B65: 0.992
A66: 100 | B66: 1.000
A69: nº de indicador: | B69: 130 | C69: función de transformación: | D69: CA=1E-02I | E69: 0<I<100
A70: Indicador: | B70: Importancia media de los elementos e la red
A71: fórmula del indicador
A72: unidad del indicador:
A73: rango de valores del indicador: | B73: 0 - 100 | C73: valor del indicador | D73: 20
A74: Tipo de indicador | B74: 2 (T=0,25) | C74: calidad ambiental | D74: =IF(D73<0,"valor del indicador fuera de rango",IF(D73<=100,0.01*D73)) -> 0.200
A75: valor del indicador | B75: calidad ambiental | C75: representación de la función de transformación
A76: 0 | B76: =0.01*A76 -> 0.000 | C76: 0.000
A77: =+A76+4 -> 4 | B77: =0.01*A77 -> 0.040 | C77: 0.000
A78: =+A77+4 -> 8 | B78: 0.080 | C78: 0.000
A79: 12 | B79: 0.120 | C79: 0.000
A80: 16 | B80: 0.160 | C80: 0.000
A81: 20 | B81: 0.200 | C81: 0.000
A82: 24 | B82: 0.240 | C82: 0.000
A83: 28 | B83: 0.280 | C83: 0.000
A84: 32 | B84: 0.320 | C84: 0.000
A85: 36 | B85: 0.360
A86: 40 | B86: 0.400
A87: 44 | B87: 0.440
A88: 48 | B88: 0.480
A89: 52 | B89: 0.520
A90: 56 | B90: 0.560
A91: 60 | B91: 0.600
A92: 64 | B92: 0.640
A93: 68 | B93: 0.680
A94: 70 | B94: 0.700
A95: 74 | B95: 0.740
A96: 90 | B96: 0.900
A97: 100 | B97: 1.000
A100: nº de indicador: | B100: 131 | C100: función de transformación: | D100: CA=-6,92E-05I2+1 | E100: 0<I<85
A101: Indicador: | B101: Disminución de la funcionalidad de la red | D101: CA=-1,52E-03I2+2,47E-01I-9,550 | E101: 85<I<100
A102: fórmula del indicador
A103: unidad del indicador:
A104: rango de valores del indicador: | B104: 0 - 100 | C104: valor del indicador | D104: 100
A105: Tipo de indicador | B105: 2 (T=0,25) | C105: calidad ambiental | D105: =IF(D104<0,"valor del indicador fuera de rango",IF(D104<=85,-0.0000692*D104^2+1,IF(D104<=100,-0.00152*D104^2+0.247*D104-9.55,"valor del indicador fuera rango"))) -> -0.050
A106: valor del indicador | B106: calidad ambiental | C106: representación de la función de transformación
A107: 0 | B107: =-0.0000692*A107^2+1 -> 1.000 | C107: 0.000
A108: =+A107+4 -> 4 | B108: 0.999 | C108: 0.000
A109: =+A108+4 -> 8 | B109: 0.996 | C109: 0.000
A110: 12 | B110: 0.990 | C110: 0.000
A111: 16 | B111: 0.982 | C111: 0.000
A112: 20 | B112: 0.972 | C112: 0.000
A113: 24 | B113: 0.960 | C113: 0.000
A114: 28 | B114: 0.946 | C114: 0.000
A115: 32 | B115: 0.929 | C115: 0.000
A116: 36 | B116: 0.910
A117: 40 | B117: 0.889
A118: 50 | B118: 0.827
A119: 60 | B119: 0.751
A120: 70 | B120: 0.661
A121: 80 | B121: 0.557
A122: 85 | B122: =-0.00152*(A122^2)+(0.247*A122)-9.55 -> 0.463
A123: 90 | B123: =-0.00152*(A123^2)+(0.247*A123)-9.55 -> 0.368
A124: 95 | B124: =-0.00152*(A124^2)+(0.247*A124)-9.55 -> 0.197
A125: 100 | B125: 0.000

Sheet 132-135
A1: nº de indicador: | B1: 132 | C1: función de transformación: | D1: CA=-4E-06I2+4E-03I | E1: 0<I<500
A2: Indicador: | B2: Concentración de sales disueltas | D2: CA=-4E-07I2+4E-04I+9E-01 | E2: 500<I<1500
A3: fórmula del indicador | D3: CA=2,67E-07I2-1,6E-03I+2,400 | E3: 1500<I<3000
A4: unidad del indicador: | B4: mg l-1
A5: rango de valores del indicador: | B5: 0 - 3000 | C5: valor del indicador | D5: 1700
A6: Tipo de indicador | B6: 2 (T=0,25) | C6: calidad ambiental | D6: =IF(D5<0,"valor del indicador fuera de rango",IF(D5<=500,-0.000004*(D5^2)+0.004*D5,IF(D5<=1500,(-0.0000004*(D5^2))+(0.0004*D5)+0.9,IF(D5<=3000,(0.000000267*(D5^2))-(0.0016*D5)+2.4,"valor del indicador fuera rango")))) -> 0.452
A7: valor del indicador | B7: calidad ambiental | C7: representación de la función de transformación
A8: 0 | B8: =-0.000004*A8^2+0.004*A8 -> 0.000
A9: =+A8+100 -> 100 | B9: 0.360
A10: =+A9+100 -> 200 | B10: 0.640
A11: =+A10+100 -> 300 | B11: 0.840
A12: =+A11+100 -> 400 | B12: 0.960
A13: =+A12+100 -> 500 | B13: 1.000
A14: =+A13+200 -> 700 | B14: =-0.0000004*A14^2+0.0004*A14+0.9 -> 0.984
A15: =+A14+200 -> 900 | B15: =-0.0000004*A15^2+0.0004*A15+0.9 -> 0.936
A16: 1100 | B16: =-0.0000004*A16^2+0.0004*A16+0.9 -> 0.856
A17: 1300 | B17: =-0.0000004*A17^2+0.0004*A17+0.9 -> 0.744
A18: 1500 | B18: =-0.0000004*A18^2+0.0004*A18+0.9 -> 0.600
A19: 1700 | B19: =0.000000267*A19^2-0.0016*A19+2.4 -> 0.452
A20: 1900 | B20: 0.324
A21: 2100 | B21: 0.217
A22: 2300 | B22: 0.132
A23: 2500 | B23: 0.069
A24: 3000 | B24: 0.003
A27: nº de indicador: | B27: 133 | C27: función de transformación: | D27: CA=1 | E27: 0<I<500
A28: Indicador: | B28: Concentración de sales disueltas (Curva propuesta por ORSANCO) | D28: CA=8E-01 | E28: 500<I<1000
A29: fórmula del indicador | D29: CA=4E-01 | E29: 1000<I<1700
A30: unidad del indicador: | B30: mg l-1
A31: rango de valores del indicador: | B31: 0 - 1700 | C31: valor del indicador | D31: 1200
A32: Tipo de indicador | B32: 2 (T=0,25) | C32: calidad ambiental | D32: =IF(D31<0,"valor del indicador fuera de rango",IF(D31<=500,1,IF(D31<=1000,0.8,IF(D31<=1700,0.4,"valor del indicador fuera rango")))) -> 0.400
A33: valor del indicador | B33: calidad ambiental | C33: representación de la función de transformación
A34: 0 | B34: 1.0
A35: =+A34+100 -> 100 | B35: 1.0
A36: =+A35+100 -> 200 | B36: 1.0
A37: 300 | B37: 1.0
A38: 400 | B38: 1.0
A39: 500 | B39: 1.0
A40: 600 | B40: 0.8
A41: 700 | B41: 0.8
A42: 800 | B42: 0.8
A43: 900 | B43: 0.8
A44: 1000 | B44: 0.8
A45: 1100 | B45: 0.4
A46: 1200 | B46: 0.4
A47: 1300 | B47: 0.4
A48: 1500 | B48: 0.4
A49: 1700 | B49: 0.4
A52: nº de indicador: | B52: 134 | C52: función de transformación: | D52: CA=-1,78E-06I2+2,67E-03I | E52: 0<I<750
A53: Indicador: | B53: Conductividad eléctrica (CE) de las aguas | D53: CA=-1,78E-07I2+2,64E-04I+9E-01 | E53: 750<I<2250
A54: fórmula del indicador | D54: CA= 1,19E-07I2-1,07E-03I+2,400 | E54: 2250<I<4500
A55: unidad del indicador: | B55: dS m-1
A56: rango de valores del indicador: | B56: 0 - 4500 | C56: valor del indicador | D56: 3000
A57: Tipo de indicador | B57: 2 (T=0,25) | C57: calidad ambiental | D57: =IF(D56<0,"valor del indicador fuera de rango",IF(D56<=750,-0.00000178*(D56^2)+(0.00267*D56),IF(D56<=2250,(-0.000000178*(D56^2))+(0.000264*D56)+0.9,IF(D56<=4500,0.000000119*(D56^2)-(0.00107*D56)+2.4,"valor del indicador fuera rango")))) -> 0.261
A58: valor del indicador | B58: calidad ambiental | C58: representación de la función de transformación
A59: 0 | B59: =-0.00000178*A59^2+0.00267*A59 -> 0.000
A60: =+A59+280 -> 280 | B60: =-0.00000178*A60^2+0.00267*A60 -> 0.608
A61: =+A60+280 -> 560 | B61: =-0.00000178*A61^2+0.00267*A61 -> 0.937
A62: 840 | B62: =-0.000000178*A62^2+0.000264*A62+0.9 -> 0.996
A63: 1120 | B63: 0.972
A64: 1400 | B64: 0.921
A65: 1680 | B65: 0.841
A66: 1960 | B66: 0.734
A67: 2240 | B67: 0.598
A68: 2520 | B68: =0.000000119*A68^2-0.00107*A68+2.4 -> 0.459
A69: 2800 | B69: 0.337
A70: 3080 | B70: 0.233
A71: 3360 | B71: 0.148
A72: 3640 | B72: 0.082
A73: 3920 | B73: 0.034
A74: 4200 | B74: 0.005
A75: 4500 | B75: -0.005
A78: nº de indicador: | B78: 135 | C78: función de transformación: | D78: CA=-1,78E-06I2+2,67E-03I | E78: 0<I<750
A79: Indicador: | B79: Conductividad eléctrica (CE) de las aguas (curva propuesta por ORSANCO) | D79: CA=-1,78E-07I2+2,64E-04I+9E-01 | E79: 750<I<2250
A80: fórmula del indicador | D80: CA= 1,19E-07I2-1,07E-03I+2,400 | E80: 2250<I<4500
A81: unidad del indicador: | B81: dS m-1
A82: rango de valores del indicador: | B82: 0 - 2500 | C82: valor del indicador | D82: 3000
A83: Tipo de indicador | B83: 2 (T=0,25) | C83: calidad ambiental | D83: =IF(D82<0,"valor del indicador fuera de rango",IF(D82<=750,-0.00000178*(D82^2)+(0.00267*D82),IF(D82<=2250,(-0.000000178*(D82^2))+(0.000264*D82)+0.9,IF(D82<=4500,0.000000119*(D82^2)-(0.00107*D82)+2.4,"valor del indicador fuera rango")))) -> 0.261
A84: valor del indicador | B84: calidad ambiental | C84: representación de la función de transformación
A85: 0 | B85: 1.0
A86: 200 | B86: 1.0
A87: 400 | B87: 1.0
A88: 500 | B88: 1.0
A89: 800 | B89: 0.6
A90: 1000 | B90: 0.6
A91: =+A90+150 -> 1150 | B91: 0.6
A92: 1300 | B92: 0.6
A93: 1450 | B93: 0.6
A94: 1600 | B94: 0.4
A95: 1750 | B95: 0.4
A96: 1900 | B96: 0.4
A97: 2050 | B97: 0.4
A98: 2200 | B98: 0.4
A99: 2350 | B99: 0.4
A100: 2500 | B100: 0.4

Sheet 136
A1: nº de indicador: | B1: 136 | C1: función de transformación: | D1: CA=1,38E-04I2-1,89E-02I+1 | E1: 0<I<50
A2: Indicador: | B2: Turbidez de las aguas | D2: CA=-4,44E-03I+6,22E-01 | E2: 50<I<140
A3: fórmula del indicador
A4: unidad del indicador: | B4: unidades Jackson
A5: rango de valores del indicador: | B5: 0 - 140 | C5: valor del indicador | D5: 100
A6: Tipo de indicador | B6: 2 (T=0,25) | C6: calidad ambiental | D6: =IF(D5<0,"valor del indicador fuera de rango",IF(D5<=50,0.000138*D5^2-0.0189*D5+1,IF(D5<=140,-0.00444*D5+0.622,"valor del indicador fuera rango"))) -> 0.178
A7: valor del indicador | B7: calidad ambiental | C7: representación de la función de transformación
A8: 0 | B8: =0.000138*A8^2-0.0189*A8+1 -> 1.000
A9: 5 | B9: 0.909
A10: 10 | B10: 0.825
A11: 15 | B11: 0.748
A12: 20 | B12: 0.677
A13: =+A12+10 -> 30 | B13: 0.557
A14: 40 | B14: 0.465
A15: 50 | B15: 0.400
A16: 60 | B16: =-0.00444*A16+0.622 -> 0.356
A17: 70 | B17: 0.311
A18: 80 | B18: 0.267
A19: 90 | B19: 0.222
A20: 100 | B20: 0.178
A21: 110 | B21: 0.134
A22: 120 | B22: 0.089
A23: 130 | B23: 0.045
A24: 140 | B24: 0.000

Sheet 137
A1: nº de indicador: | B1: 137 | C1: función de transformación: | D1: CA=-6,67E-04I2+1 | E1: 0<I<15
A2: Indicador: | B2: Concentración media de fósforo en las aguas | D2: CA=1,18E-04I2-2,35E-02I+1,180 | E2: 15<I<100
A3: fórmula del indicador
A4: unidad del indicador: | B4: mg m-3
A5: rango de valores del indicador: | B5: 0 - 100 | C5: valor del indicador | D5: 30
A6: Tipo de indicador | B6: 2 (T=0,25) | C6: calidad ambiental | D6: =IF(D5<0,"valor del indicador fuera de rango",IF(D5<=15,-0.000667*D5^2+1,IF(D5<=100,0.000118*D5^2-0.0235*D5+1.18,"valor del indicador fuera rango"))) -> 0.581
A7: valor del indicador | B7: calidad ambiental | C7: representación de la función de transformación
A8: 0 | B8: =-0.000667*A8^2+1 -> 1.000
A9: 2 | B9: 0.997
A10: 4 | B10: 0.989
A11: 6 | B11: 0.976
A12: 8 | B12: 0.957
A13: 10 | B13: 0.933
A14: 12 | B14: 0.904
A15: 15 | B15: 0.850
A16: 15 | B16: =0.000118*(A16^2)-0.0235*A16+1.18 -> 0.854
A17: 30 | B17: =0.000118*(A17^2)-0.0235*A17+1.18 -> 0.581
A18: 40 | B18: 0.429
A19: 50 | B19: 0.300
A20: 60 | B20: 0.195
A21: 70 | B21: 0.113
A22: 80 | B22: 0.055
A23: 100 | B23: 0.010

Sheet 138
A1: nº de indicador: | B1: 138 | C1: función de transformación: | D1: CA=-2,5E-01I+1 | E1: 0<I<1
A2: Indicador: | B2: Variación de la peligrosidad potencial | D2: CA=-1,88E-01I+9,38E-01 | E2: 1<I<5
A3: fórmula del indicador
A4: unidad del indicador:
A5: rango de valores del indicador: | B5: 0 - 5 | C5: valor del indicador | D5: 3
A6: Tipo de indicador | B6: 3 (T=0,50) | C6: calidad ambiental | D6: =IF(D5<0,"valor del indicador fuera de rango",IF(D5<=1,-0.25*D5+1,IF(D5<=5,-0.188*D5+0.938,"valor del indicador fuera rango"))) -> 0.374
A7: valor del indicador | B7: calidad ambiental | C7: representación de la función de transformación
A8: 0.00 | B8: =-0.25*A8+1 -> 1.000
A9: 0.10 | B9: 0.975
A10: 0.20 | B10: 0.950
A11: 0.30 | B11: 0.925
A12: 0.40 | B12: 0.900
A13: 0.50 | B13: 0.875
A14: =+A13+0.25 -> 0.75 | B14: 0.813
A15: 1.00 | B15: =-0.25*A15+1 -> 0.750
A16: 1.25 | B16: =-0.188*A16+0.938 -> 0.703
A17: 1.50 | B17: =-0.188*A17+0.938 -> 0.656
A18: 1.75 | B18: 0.609
A19: 2.00 | B19: 0.562
A20: 2.25 | B20: 0.515
A21: 2.50 | B21: 0.468
A22: 2.75 | B22: 0.421
A23: 3.00 | B23: 0.374
A24: 3.25 | B24: 0.327
A25: 3.50 | B25: 0.280
A26: 3.75 | B26: 0.233
A27: 4.00 | B27: 0.186
A28: 4.25 | B28: 0.139
A29: 4.50 | B29: 0.092
A30: 4.75 | B30: 0.045
A31: 5.00 | B31: 0.000

Sheet 139-140
A1: nº de indicador: | B1: 139 | C1: función de transformación: | D1: CA=-1E-01I+1 | E1: 0<I<5
A2: Indicador: | B2: % de superdicie afectada por procesos de erosión-sedimentación | D2: CA=1,25E-03I2-6,25E-02I+7,81E-01 | E2: 5<I<25
A3: fórmula del indicador
A4: unidad del indicador:
A5: rango de valores del indicador: | B5: 0 - 25 | C5: valor del indicador | D5: 10
A6: Tipo de indicador | B6: 2 (T=0,25) | C6: calidad ambiental | D6: =IF(D5<0,"valor del indicador fuera de rango",IF(D5<=5,(-0.1*(D5))+1,IF(D5<=25,(0.00125*(D5^2))-(0.0625*D5)+0.781,"valor del indicador fuera rango"))) -> 0.281
A7: valor del indicador | B7: calidad ambiental | C7: representación de la función de transformación
A8: 0.00 | B8: =-0.1*A8+1 -> 1.000
A9: 1.00 | B9: 0.900
A10: 2.00 | B10: 0.800
A11: 3.00 | B11: 0.700
A12: 4.00 | B12: 0.600
A13: 5.00 | B13: 0.500
A14: 6.00 | B14: =0.00125*A14^2-0.0625*A14+0.781 -> 0.451
A15: 7.00 | B15: =0.00125*A15^2-0.0625*A15+0.781 -> 0.405
A16: =+A15+2 -> 9.00 | B16: =0.00125*A16^2-0.0625*A16+0.781 -> 0.320
A17: 11.00 | B17: =0.00125*A17^2-0.0625*A17+0.781 -> 0.245
A18: 13.00 | B18: 0.180
A19: 15.00 | B19: 0.125
A20: 17.00 | B20: 0.080
A21: 19.00 | B21: 0.045
A22: 21.00 | B22: 0.020
A23: 23.00 | B23: 0.005
A24: 25.00 | B24: -0.000
A27: nº de indicador: | B27: 140 | C27: función de transformación: | D27: CA=-1E-01I+1 | E27: 0<I<5
A28: Indicador: | D28: CA=1,25E-03I2-6,25E-02I+7,81E-01 | E28: 5<I<25
A29: fórmula del indicador
A30: unidad del indicador:
A31: rango de valores del indicador: | B31: 0 - 25 | C31: valor del indicador | D31: 11
A32: Tipo de indicador | B32: 2 (T=0,25) | C32: calidad ambiental | D32: =IF(D31<0,"valor del indicador fuera de rango",IF(D31<=5,(-0.1*(D31^2))+1,IF(D31<=25,(0.00125*(D31^2))-(0.0625*D31)+0.781,"valor del indicador fuera rango"))) -> 0.245
A33: valor del indicador | B33: calidad ambiental | C33: representación de la función de transformación
A34: 0.00 | B34: =-0.1*A34+1 -> 1.000
A35: 1.00 | B35: 0.900
A36: 2.00 | B36: 0.800
A37: 3.00 | B37: 0.700
A38: 4.00 | B38: 0.600
A39: 5.00 | B39: 0.500
A40: 6.00 | B40: =0.00125*A40^2-0.0625*A40+0.781 -> 0.451
A41: 7.00 | B41: =0.00125*A41^2-0.0625*A41+0.781 -> 0.405
A42: =+A41+2 -> 9.00 | B42: =0.00125*A42^2-0.0625*A42+0.781 -> 0.320
A43: 11.00 | B43: =0.00125*A43^2-0.0625*A43+0.781 -> 0.245
A44: 13.00 | B44: 0.180
A45: 15.00 | B45: 0.125
A46: 17.00 | B46: 0.080
A47: 19.00 | B47: 0.045
A48: 21.00 | B48: 0.020
A49: 23.00 | B49: 0.005
A50: 25.00 | B50: -0.000

Sheet 141
A1: nº de indicador: | B1: 141 | C1: función de transformación: | D1: CA= -4,5E-05*(I^2)+5,5E-03*I+1 | E1: (-100)<I<0
A2: Indicador: | D2: CA=1 | E2: 0<I<20
A3: fórmula del indicador | D3: CA=-1,56E-04*(I^2)+6,25E-03*(I)+9,38E-01 | E3: 20<I<100
A4: unidad del indicador:
A5: rango de valores del indicador: | B5: -100 - 100 | C5: valor del indicador | D5: 32
A6: Tipo de indicador | B6: 2 (T=0,25) | C6: calidad ambiental | D6: =IF(D5<-100,"valor del indicador fuera de rango",IF(D5<=0,-0.000045*D5^2+0.0055*D5+1,IF(D5<=20,1,IF(D5<=100,-0.000156*D5^2+0.00625*D5+0.938,"valor del indicador fuera rango")))) -> 0.978
A7: valor del indicador | B7: calidad ambiental | C7: representación de la función de transformación
A8: -100.00 | B8: =-0.000045*(A8^2)+0.0055*A8+1 -> 0.000
A9: =+A8+12 -> -88.00 | B9: =-0.000045*(A9^2)+0.0055*A9+1 -> 0.168
A10: =+A9+12 -> -76.00 | B10: 0.322
A11: -64.00 | B11: 0.464
A12: -52.00 | B12: 0.592
A13: -40.00 | B13: 0.708
A14: -28.00 | B14: 0.811
A15: -16.00 | B15: 0.900
A16: -4.00 | B16: 0.977
A17: 8.00 | B17: 1.000
A18: 20.00 | B18: 1.000
A19: 32.00 | B19: =-0.000156*(A19^2)+0.00625*A19+0.938 -> 0.978
A20: 44.00 | B20: =-0.000156*(A20^2)+0.00625*A20+0.938 -> 0.911
A21: 56.00 | B21: 0.799
A22: 68.00 | B22: 0.642
A23: 80.00 | B23: 0.440
A24: 92.00 | B24: 0.193
A25: 100.00 | B25: 0.003

Sheet 142-145
A1: nº de indicador: | B1: 142 | C1: función de transformación: | D1: CA= 1E-04*(I^2)+2E-02*I+1,500 | E1: (-100)<I<(-50)
A2: Indicador: | B2: Variación del tiempo de permanencia del agua en la superficie respecto a la situación "sin" proyecto (núcleos urbanos) | D2: CA=-4E-04*(I^2)-2E-02*I+7,5E-01 | E2: (-50)<I<0
A3: fórmula del indicador | D3: CA= 7,5-05*(I^2)-1,5E-02*I+7,5E-01 | E3: 0<I<100
A4: unidad del indicador:
A5: rango de valores del indicador: | B5: -100 - 100 | C5: valor del indicador | D5: 90
A6: Tipo de indicador | B6: 2 (T=0,25) | C6: calidad ambiental | D6: =IF(D5<-100,"valor del indicador fuera de rango",IF(D5<=-50,0.0001*(D5^2)+(0.02*D5)+1.5,IF(D5<=0,(-0.0004*(D5^2))-(0.02*D5)+0.75,IF(D5<=100,0.000075*(D5^2)-0.015*D5+0.75,"valor del indicador fuera rango")))) -> 0.008
A7: valor del indicador | B7: calidad ambiental | C7: representación de la función de transformación
A8: -100.00 | B8: =0.0001*(A8^2)+0.02*(A8)+1.5 -> 0.500
A9: -80.00 | B9: =0.0001*(A9^2)+0.02*(A9)+1.5 -> 0.540
A10: -60.00 | B10: =0.0001*(A10^2)+0.02*(A10)+1.5 -> 0.660
A11: -55.00 | B11: =0.0001*(A11^2)+0.02*(A11)+1.5 -> 0.703
A12: -50.00 | B12: =0.0001*(A12^2)+0.02*(A12)+1.5 -> 0.750
A13: -40.00 | B13: =-0.0004*(A13^2)-0.02*(A13)+0.75 -> 0.910
A14: -30.00 | B14: =-0.0004*(A14^2)-0.02*(A14)+0.75 -> 0.990
A15: -20.00 | B15: =-0.0004*(A15^2)-0.02*(A15)+0.75 -> 0.990
A16: -10.00 | B16: =-0.0004*(A16^2)-0.02*(A16)+0.75 -> 0.910
A17: 0.00 | B17: =-0.0004*(A17^2)-0.02*(A17)+0.75 -> 0.750
A18: 10.00 | B18: =0.000075*(A18)*(A18)-0.015*(A18)+0.75 -> 0.608
A19: 32.00 | B19: 0.347
A20: 44.00 | B20: 0.235
A21: 56.00 | B21: 0.145
A22: 68.00 | B22: 0.077
A23: 80.00 | B23: 0.030
A24: 100.00 | B24: 0.000
A27: nº de indicador: | B27: 143 | C27: función de transformación: | D27: CA= 6E-05(I^2)+1,2E-0,2*I+1,2 | E27: (-100)<I<(-50)
A28: Indicador: | B28: Variación del tiempo de permanencia del agua en la superficie respecto a la situación "sin" proyecto (núcleos no urbanos) | D28: CA= -4E-04*(I^2)-2E-02*I+7,5E-01 | E28: (-50)<I<0
A29: fórmula del indicador | D29: CA= -7,5E-03*I+7,5E-01 | E29: 0<I<100
A30: unidad del indicador:
A31: rango de valores del indicador: | B31: -100 - 100 | C31: valor del indicador | D31: 90
A32: Tipo de indicador | B32: 2 (T=0,25) | C32: calidad ambiental | D32: =IF(D31<-100,"valor del indicador fuera de rango",IF(D31<=-50,0.00006*(D31^2)+(0.012*D31)+1.2,IF(D31<=0,(-0.0004*(D31^2))-(0.02*D31)+0.75,IF(D31<=100,-0.0075*(D31)+0.75,"valor del indicador fuera rango")))) -> 0.075
A33: valor del indicador | B33: calidad ambiental | C33: representación de la función de transformación
A34: -100.00 | B34: =0.00006*(A34^2)+0.012*A34+1.2 -> 0.600
A35: -80.00 | B35: =0.00006*(A35^2)+0.012*A35+1.2 -> 0.624
A36: -60.00 | B36: =0.00006*(A36^2)+0.012*A36+1.2 -> 0.696
A37: -55.00 | B37: =0.00006*(A37^2)+0.012*A37+1.2 -> 0.722
A38: -50.00 | B38: =0.00006*(A38^2)+0.012*A38+1.2 -> 0.750
A39: -40.00 | B39: =-0.0004*(A39^2)-0.02*A39+0.75 -> 0.910
A40: -30.00 | B40: =-0.0004*(A40^2)-0.02*A40+0.75 -> 0.990
A41: -20.00 | B41: =-0.0004*(A41^2)-0.02*A41+0.75 -> 0.990
A42: -10.00 | B42: =-0.0004*(A42^2)-0.02*A42+0.75 -> 0.910
A43: 0.00 | B43: =-0.0004*(A43^2)-0.02*A43+0.75 -> 0.750
A44: 10.00 | B44: =-0.0075*A44+0.75 -> 0.675
A45: 32.00 | B45: 0.510
A46: 44.00 | B46: 0.420
A47: 56.00 | B47: 0.330
A48: 68.00 | B48: 0.240
A49: 80.00 | B49: 0.150
A50: 100.00 | B50: 0.000
A53: nº de indicador: | B53: 144 | C53: función de transformación: | D53: CA= 1E-04*(I^2)+2E-02*I+1,500 | E53: (-100)<I<(-50)
A54: Indicador: | B54: Variación del tiempo de permanencia del agua en la superficie respecto a las condiciones naturales (núcleos urbanos) | D54: CA=-4E-04*(I^2)-2E-02*I+7,5E-01 | E54: (-50)<I<0
A55: fórmula del indicador | D55: CA= 7,5-05*(I^2)-1,5E-02*I+7,5E-01 | E55: 0<I<100
A56: unidad del indicador:
A57: rango de valores del indicador: | B57: -100 - 100 | C57: valor del indicador | D57: 90
A58: Tipo de indicador | B58: 2 (T=0,25) | C58: calidad ambiental | D58: =IF(D57<-100,"valor del indicador fuera de rango",IF(D57<=-50,0.0001*(D57^2)+(0.02*D57)+1.5,IF(D57<=0,(-0.0004*(D57^2))-(0.02*D57)+0.75,IF(D57<=100,0.000075*(D57^2)-0.015*D57+0.75,"valor del indicador fuera rango")))) -> 0.008
A59: valor del indicador | B59: calidad ambiental | C59: representación de la función de transformación
A60: -100.00 | B60: =0.0001*(A60^2)+0.02*(A60)+1.5 -> 0.500
A61: -80.00 | B61: =0.0001*(A61^2)+0.02*(A61)+1.5 -> 0.540
A62: -60.00 | B62: =0.0001*(A62^2)+0.02*(A62)+1.5 -> 0.660
A63: -55.00 | B63: =0.0001*(A63^2)+0.02*(A63)+1.5 -> 0.703
A64: -50.00 | B64: =0.0001*(A64^2)+0.02*(A64)+1.5 -> 0.750
A65: -40.00 | B65: =-0.0004*(A65^2)-0.02*(A65)+0.75 -> 0.910
A66: -30.00 | B66: =-0.0004*(A66^2)-0.02*(A66)+0.75 -> 0.990
A67: -20.00 | B67: =-0.0004*(A67^2)-0.02*(A67)+0.75 -> 0.990
A68: -10.00 | B68: =-0.0004*(A68^2)-0.02*(A68)+0.75 -> 0.910
A69: 0.00 | B69: =-0.0004*(A69^2)-0.02*(A69)+0.75 -> 0.750
A70: 10.00 | B70: =0.000075*(A70)*(A70)-0.015*(A70)+0.75 -> 0.608
A71: 32.00 | B71: 0.347
A72: 44.00 | B72: 0.235
A73: 56.00 | B73: 0.145
A74: 68.00 | B74: 0.077
A75: 80.00 | B75: 0.030
A76: 100.00 | B76: 0.000
A79: nº de indicador: | B79: 145 | C79: función de transformación: | D79: CA= 6E-05(I^2)+1,2E-0,2*I+1,2 | E79: (-100)<I<(-50)
A80: Indicador: | B80: Variación del tiempo de permanencia del agua en la superficie respecto a las condiciones naturales (núcleos no urbanos) | D80: CA= -4E-04*(I^2)-2E-02*I+7,5E-01 | E80: (-50)<I<0
A81: fórmula del indicador | D81: CA= -7,5E-03*I+7,5E-01 | E81: 0<I<100
A82: unidad del indicador:
A83: rango de valores del indicador: | B83: -100 - 100 | C83: valor del indicador | D83: 90
A84: Tipo de indicador | B84: 2 (T=0,25) | C84: calidad ambiental | D84: =IF(D83<-100,"valor del indicador fuera de rango",IF(D83<=-50,0.00006*(D83^2)+(0.012*D83)+1.2,IF(D83<=0,(-0.0004*(D83^2))-(0.02*D83)+0.75,IF(D83<=100,-0.0075*(D83)+0.75,"valor del indicador fuera rango")))) -> 0.075
A85: valor del indicador | B85: calidad ambiental | C85: representación de la función de transformación
A86: -100.00 | B86: =0.00006*(A86^2)+0.012*A86+1.2 -> 0.600
A87: -80.00 | B87: =0.00006*(A87^2)+0.012*A87+1.2 -> 0.624
A88: -60.00 | B88: =0.00006*(A88^2)+0.012*A88+1.2 -> 0.696
A89: -55.00 | B89: =0.00006*(A89^2)+0.012*A89+1.2 -> 0.722
A90: -50.00 | B90: =0.00006*(A90^2)+0.012*A90+1.2 -> 0.750
A91: -40.00 | B91: =-0.0004*(A91^2)-0.02*A91+0.75 -> 0.910
A92: -30.00 | B92: =-0.0004*(A92^2)-0.02*A92+0.75 -> 0.990
A93: -20.00 | B93: =-0.0004*(A93^2)-0.02*A93+0.75 -> 0.990
A94: -10.00 | B94: =-0.0004*(A94^2)-0.02*A94+0.75 -> 0.910
A95: 0.00 | B95: =-0.0004*(A95^2)-0.02*A95+0.75 -> 0.750
A96: 10.00 | B96: =-0.0075*A96+0.75 -> 0.675
A97: 32.00 | B97: 0.510
A98: 44.00 | B98: 0.420
A99: 56.00 | B99: 0.330
A100: 68.00 | B100: 0.240
A101: 80.00 | B101: 0.150
A102: 100.00 | B102: 0.000

Sheet 146-147
A1: nº de indicador: | B1: 146 | C1: función de transformación: | D1: CA=1 | E1: 0>I>(-100)
A2: Indicador: | B2: Variación del riesgo de inundaciones ponderado según el daño potencial | D2: CA=-1*E-4*I2+1 | E2: 0<I<100
A3: fórmula del indicador
A4: unidad del indicador:
A5: rango de valores del indicador: | B5: -100 - 100 | C5: valor del indicador | D5: 10
A6: Tipo de indicador | B6: 2 (T=0,25) | C6: calidad ambiental | D6: =IF(D5<-100,"valor del indicador fuera de rango",IF(D5<=0,1,IF(D5<=100,(-0.0001*(D5^2))+1,"valor del indicador fuera de rango"))) -> 0.990
A7: valor del indicador | B7: calidad ambiental | C7: representación de la función de transformación
A8: -100.00 | B8: 1.000
A9: =+A8+10 -> -90.00 | B9: 1.000
A10: =+A9+10 -> -80.00 | B10: 1.000
A11: -70.00 | B11: 1.000
A12: -60.00 | B12: 1.000
A13: -50.00 | B13: 1.000
A14: -40.00 | B14: 1.000
A15: -30.00 | B15: 1.000
A16: -20.00 | B16: 1.000
A17: -10.00 | B17: 1.000
A18: 0.00 | B18: 1.000
A19: 10.00 | B19: =-0.0001*A19^2+1 -> 0.990
A20: 20.00 | B20: 0.960
A21: 30.00 | B21: 0.910
A22: 40.00 | B22: 0.840
A23: 50.00 | B23: 0.750
A24: 60.00 | B24: 0.640
A25: 70.00 | B25: 0.510
A26: 80.00 | B26: 0.360
A27: 90.00 | B27: 0.190
A28: 100.00 | B28: 0.000
A31: nº de indicador: | B31: 147 | C31: función de transformación: | D31: CA=2E-4*I2+4E-2*I+2 | E31: ( -100)<I<(-50)
A32: Indicador: | B32: Variación del riesgo de inundaciones con respecto a las condiciones naturales ponderado por el daño potencial | D32: CA=-2E-4*I2+1 | E32: (-50)<I<50
A33: fórmula del indicador | D33: CA=2E-4*I2+4E-2*I+2 | E33: 50<I<100
A34: unidad del indicador:
A35: rango de valores del indicador: | B35: -100 - 100 | C35: valor del indicador | D35: 10
A36: Tipo de indicador | B36: 2 (T=0,25) | C36: calidad ambiental | D36: =IF(D35<-100,"valor del indicador fuera de rango",IF(D35<=-50,0.0002*D35^2+0.04*D35+2,IF(D35<=50,-0.0002*D35^2+1,IF(D35<=100,0.0002*D35^2-0.04*D35+2,"valor del indicador fuera de rango")))) -> 0.980
A37: valor del indicador | B37: calidad ambiental | C37: representación de la función de transformación
A38: -100.00 | B38: =0.0002*A38^2+0.04*A38+2 -> 0.000
A39: =+A38+10 -> -90.00 | B39: 0.020
A40: =+A39+10 -> -80.00 | B40: 0.080
A41: -70.00 | B41: 0.180
A42: -60.00 | B42: 0.320
A43: -50.00 | B43: 0.500
A44: -40.00 | B44: =-0.0002*A44^2+1 -> 0.680
A45: -30.00 | B45: 0.820
A46: -20.00 | B46: 0.920
A47: -10.00 | B47: 0.980
A48: 0.00 | B48: 1.000
A49: 10.00 | B49: 0.980
A50: 20.00 | B50: 0.920
A51: 30.00 | B51: 0.820
A52: 40.00 | B52: 0.680
A53: 50.00 | B53: 0.500
A54: 60.00 | B54: =0.0002*A54^2-0.04*A54+2 -> 0.320
A55: 70.00 | B55: =0.0002*A55^2-0.04*A55+2 -> 0.180
A56: 80.00 | B56: =0.0002*A56^2-0.04*A56+2 -> 0.080
A57: 90.00 | B57: =0.0002*A57^2-0.04*A57+2 -> 0.020
A58: 100.00 | B58: =0.0002*A58^2-0.04*A58+2 -> 0.000

Sheet 148-149
A1: nº de indicador: | B1: 148 | C1: función de transformación: | D1: CA=-6E-3*I2+1 | E1: 0<I<5
A2: Indicador: | B2: Media ponderada de los materiales desplazados según la superficie de zonas homogéneas | D2: CA=2,13E-3*I2-1,06E-1*I+1,330 | E2: 5<I<25
A3: fórmula del indicador | D3: CA=0 | E3: 25<I<100
A4: unidad del indicador: | B4: T ha-1 año-1
A5: rango de valores del indicador: | B5: 0 - 100 | C5: valor del indicador | D5: 40
A6: Tipo de indicador | B6: 2 (T=0,25) | C6: calidad ambiental | D6: =IF(D5<0,"valor del indicador fuera de rango",IF(D5<=5,-0.006*D5^2+1,IF(D5<=25,0.00213*D5^2-0.106*D5+1.33,IF(D5<=100,0,"valor del indicador fuera de rango")))) -> 0.000
A7: valor del indicador | B7: calidad ambiental | C7: representación de la función de transformación
A8: 0 | B8: =-0.006*A8^2+1 -> 1.000
A9: 2 | B9: =-0.006*A9^2+1 -> 0.976
A10: 4 | B10: =-0.006*A10^2+1 -> 0.904
A11: 5 | B11: =-0.006*A11^2+1 -> 0.850
A12: 9 | B12: =0.00213*A12^2-0.106*A12+1.33 -> 0.549
A13: =+A12+2 -> 11 | B13: 0.422
A14: =+A13+2 -> 13 | B14: 0.312
A15: 15 | B15: 0.219
A16: 17 | B16: 0.144
A17: 19 | B17: 0.085
A18: 21 | B18: 0.043
A19: 23 | B19: 0.019
A20: 25 | B20: 0.000
A21: 35 | B21: 0.000
A22: 45 | B22: 0.000
A23: =+A22+10 -> 55 | B23: 0.000
A24: =+A23+10 -> 65 | B24: 0.000
A25: =+A24+10 -> 75 | B25: 0.000
A26: =+A25+10 -> 85 | B26: 0.000
A27: 95 | B27: 0.000
A28: 100 | B28: 0.000
A31: nº de indicador: | B31: 149 | C31: función de transformación: | D31: CA=-1,21E-1*I2+1 | E31: 0<I<1,7
A32: Indicador: | B32: Materiales desplazados por erosión eólica | D32: CA=5,97E-2*I2-5,97E-1*I+1,490 | E32: 1,7<I<5
A33: fórmula del indicador
A34: unidad del indicador: | B34: kg m-2 a-1
A35: rango de valores del indicador: | B35: 0 - 5 | C35: valor del indicador | D35: 3
A36: Tipo de indicador | B36: 2 (T=0,25) | C36: calidad ambiental | D36: =IF(D35<0,"valor del indicador fuera de rango",IF(D35<=1.7,-0.121*D35^2+1,IF(D35<=5,0.0597*D35^2-0.597*D35+1.49,"valor del indicador fuera de rango"))) -> 0.236
A37: valor del indicador | B37: calidad ambiental | C37: representación de la función de transformación
A38: 0 | B38: =-0.121*A38^2+1 -> 1.000
A39: =+A38+0.3 -> 0.3 | B39: 0.989
A40: =+A39+0.3 -> 0.6 | B40: 0.956
A41: 0.9 | B41: 0.902
A42: 1.2 | B42: 0.826
A43: 1.5 | B43: 0.728
A44: 1.8 | B44: =0.0597*A44^2-0.597*A44+1.49 -> 0.609
A45: 2.1 | B45: 0.500
A46: 2.4 | B46: 0.401
A47: 2.7 | B47: 0.313
A48: 3.0 | B48: 0.236
A49: 3.3 | B49: 0.170
A50: 3.6 | B50: 0.115
A51: 3.9 | B51: 0.070
A52: 4.2 | B52: 0.036
A53: 4.5 | B53: 0.012
A54: 5.0 | B54: 0.000

Sheet 150
A1: nº de indicador: | B1: 150 | C1: función de transformación: | D1: CA=-1E-4*I2+1 | E1: (-100)<I<0
A2: Indicador: | B2: Variación del volumen de deposición en zonas sensibles con respecto a las condiciones naturales | D2: CA=-6,4E-5*I2-3,6E-3*I+1 | E2: 0<I<100
A3: fórmula del indicador
A4: unidad del indicador:
A5: rango de valores del indicador: | B5: -100 - 100 | C5: valor del indicador | D5: 10
A6: Tipo de indicador | B6: 2 (T=0,25) | C6: calidad ambiental | D6: =IF(D5<-100,"valor del indicador fuera de rango",IF(D5<=0,-0.0001*D5^2+1,IF(D5<=100,-0.000064*D5^2-0.0036*D5+1,"valor del indicador fuera de rango"))) -> 0.958
A7: valor del indicador | B7: calidad ambiental | C7: representación de la función de transformación
A8: -100.00 | B8: =-0.0001*A8^2+1 -> 0.000
A9: =+A8+10 -> -90.00 | B9: 0.190
A10: =+A9+10 -> -80.00 | B10: 0.360
A11: -70.00 | B11: 0.510
A12: -60.00 | B12: 0.640
A13: -50.00 | B13: 0.750
A14: -40.00 | B14: 0.840
A15: -30.00 | B15: 0.910
A16: -20.00 | B16: 0.960
A17: -10.00 | B17: 0.990
A18: 0.00 | B18: 1.000
A19: 10.00 | B19: =-0.000064*(A19^2)-0.0036*A19+1 -> 0.958
A20: 20.00 | B20: =-0.000064*(A20^2)-0.0036*A20+1 -> 0.902
A21: 30.00 | B21: 0.834
A22: 40.00 | B22: 0.754
A23: 50.00 | B23: 0.660
A24: 70.00 | B24: 0.434
A25: 90.00 | B25: =-0.000064*(A25^2)-0.0036*A25+1 -> 0.158
A26: 100.00 | B26: 0.000

Sheet 151-152
A1: nº de indicador: | B1: 151 | C1: función de transformación: | D1: CA=1 | E1: -100<I<0
A2: Indicador: | B2: Variación de los riesgos existentes | D2: CA=-1E-02x+1 | E2: 0<I<100
A3: fórmula del indicador
A4: unidad del indicador:
A5: rango de valores del indicador: | B5: -100 - 100 | C5: valor del indicador | D5: 20
A6: Tipo de indicador | B6: 2 (T=0,25) | C6: calidad ambiental | D6: =IF(D5<-100,"valor del indicador fuera de rango",IF(D5<=0,1,IF(D5<=100,(-0.01*D5+1),"valor del indicador fuera rango"))) -> 0.800
A7: valor del indicador | B7: calidad ambiental | C7: representación de la función de transformación
A8: -100.00 | B8: 1.000
A9: =+A8+10 -> -90.00 | B9: 1.000
A10: =+A9+10 -> -80.00 | B10: 1.000
A11: -70.00 | B11: 1.000
A12: -60.00 | B12: 1.000
A13: -50.00 | B13: 1.000
A14: -40.00 | B14: 1.000
A15: -30.00 | B15: 1.000
A16: -20.00 | B16: 1.000
A17: -10.00 | B17: 1.000
A18: 0.00 | B18: 1.000
A19: 10.00 | B19: =-0.01*A19+1 -> 0.90
A20: 20.00 | B20: 0.80
A21: 30.00 | B21: 0.70
A22: 40.00 | B22: 0.60
A23: 50.00 | B23: 0.50
A24: 60.00 | B24: 0.40
A25: 70.00 | B25: 0.30
A26: 80.00 | B26: 0.20
A27: 90.00 | B27: 0.10
A28: 100.00 | B28: 0.00
A31: nº de indicador: | B31: 152 | C31: función de transformación: | D31: CA=1 | E31: -100<I<0
A32: Indicador: | B32: Variación de los riesgos existentes ponderados según el valor ambiental y el daño potencial | D32: CA=-1E-02x+1 | E32: 0<I<100
A33: fórmula del indicador
A34: unidad del indicador:
A35: rango de valores del indicador: | B35: -100 - 100 | C35: valor del indicador | D35: 20
A36: Tipo de indicador | B36: 2 (T=0,25) | C36: calidad ambiental | D36: =IF(D35<-100,"valor del indicador fuera de rango",IF(D35<=0,1,IF(D35<=100,(-0.01*D35+1),"valor del indicador fuera rango"))) -> 0.800
A37: valor del indicador | B37: calidad ambiental | C37: representación de la función de transformación
A38: -100.00 | B38: 1.000
A39: =+A38+10 -> -90.00 | B39: 1.000
A40: =+A39+10 -> -80.00 | B40: 1.000
A41: -70.00 | B41: 1.000
A42: -60.00 | B42: 1.000
A43: -50.00 | B43: 1.000
A44: -40.00 | B44: 1.000
A45: -30.00 | B45: 1.000
A46: -20.00 | B46: 1.000
A47: -10.00 | B47: 1.000
A48: 0.00 | B48: 1.000
A49: 10.00 | B49: =-0.01*A49+1 -> 0.90
A50: 20.00 | B50: 0.80
A51: 30.00 | B51: 0.70
A52: 40.00 | B52: 0.60
A53: 50.00 | B53: 0.50
A54: =+A53+5 -> 55.00 | B54: 0.45
A55: 60.00 | B55: 0.40
A56: 65.00 | B56: 0.35
A57: 70.00 | B57: 0.30
A58: 75.00 | B58: 0.25
A59: 80.00 | B59: 0.20
A60: 85.00 | B60: 0.15
A61: 90.00 | B61: 0.10
A62: 95.00 | B62: 0.05
A63: 100.00 | B63: 0.00

Sheet 153
A1: nº de indicador: | B1: 153 | C1: función de transformación: | D1: CA=-8,89E-05x2+1,33E-02x+5E-0,1 | E1: 0<I<75
A2: Indicador: | B2: variación de la compactación del terreno en relación a las condiciones naturales | D2: CA=1 | E2: 75<I<100
A3: fórmula del indicador | D3: CA=-1E-04x2+2E-02x | E3: 100<I<200
A4: unidad del indicador:
A5: rango de valores del indicador: | B5: 0 - 200 | C5: valor del indicador | D5: 105
A6: Tipo de indicador | B6: 2 (T=0,25) | C6: calidad ambiental | D6: =IF(D5<0,"valor del indicador fuera de rango",IF(D5<=75,-0.0000889*D5^2+0.0133*D5+0.5,IF(D5<=100,1,IF(D5<=200,-0.0001*D5^2+0.02*D5,"valor del indicador fuera rango")))) -> 0.998
A7: valor del indicador | B7: calidad ambiental | C7: representación de la función de transformación
A8: 0 | B8: =-0.0000889*A8^2+0.0133*A8+0.5 -> 0.500
A9: 10 | B9: 0.624
A10: 20 | B10: 0.730
A11: 30 | B11: 0.819
A12: 40 | B12: 0.890
A13: 50 | B13: 0.943
A14: 60 | B14: 0.978
A15: 70 | B15: =1 -> 1.000
A16: 80 | B16: =1 -> 1.000
A17: 90 | B17: =1 -> 1.000
A18: 100 | B18: =1 -> 1.000
A19: 120 | B19: =-0.0001*A19^2+0.02*A19 -> 0.960
A20: 140 | B20: =-0.0001*A20^2+0.02*A20 -> 0.840
A21: 160 | B21: =-0.0001*A21^2+0.02*A21 -> 0.640
A22: 180 | B22: =-0.0001*A22^2+0.02*A22 -> 0.360
A23: 200 | B23: =-0.0001*A23^2+0.02*A23 -> 0.000
